{"text_format":"1","workbook":"xlsx","n_sheets":2,"sheets":["Génie-TI","Instructions"],"not_rendered":{"charts":0,"images":0,"macros":0,"external_links":0,"defined_names":3,"comments":2,"pivot_tables":0},"unopened":[],"bounds":{"document_bytes":16777216,"sheet_cells":100000,"rows_first":2000,"rows_last":500,"rows_between":2000,"halvings":0,"cell_chars":16384,"cell_head_chars":4096},"cells_cut":0,"cells_raw":0,"read":"whole","date_system":"1900"}

{"sheet":"Génie-TI","index":0,"n_rows":73,"n_cols":11,"rows_kept":73,"cut":false,"hidden":false,"merged":[[0,0,0,10],[72,0,72,1]]}
["Budget du projet"]
[]
["Nature de la dépense","Description de la dépense","Coût unitaire","Unité","Unité","Unité","Montant demandé avant taxes","Taux de remboursement","Taxes (100 %)","Montant demandé","Montant proposé"]
["Dépenses liées à la formation des superviseurs de stage"]
["Honoraires professionnels du formateur",null,null,null,null,null,{"$f":"C5*D5*E5*F5","v":0},0.5,{"$f":"0.14975*(C5*D5*E5*F5)","v":0},{"$f":"G5*H5","v":0},{"$f":"+(C5*D5*E5*F5)*H5","v":0}]
["Salaire de base des participants",null,null,null,null,null,{"$f":"C6*D6*E6*F6","v":0},0.5,null,{"$f":"G6*H6","v":0},{"$f":"+(C6*D6*E6*F6)*H6","v":0}]
["Déplacement du formateur",null,null,null,null,null,{"$f":"C7*D7*E7*F7","v":0},0.5,null,0,0]
["Déplacement des participants ",null,null,null,null,null,0,0.5,null,0,0]
["Hébergement du formateur",null,null,null,null,null,0,0.5,null,0,0]
["Hébergement des participants ",null,null,null,null,null,0,0.5,null,0,0]
["Frais de repas du formateur",null,null,null,null,null,{"$f":"C11*D11*E11*F11","v":0},0.5,null,{"$f":"G11*H11","v":0},{"$f":"+(C11*D11*E11*F11)*H11","v":0}]
["Frais de repas des participants ",null,null,null,null,null,0,0.5,null,0,0]
["Matériel didactique",null,null,null,null,null,0,0.5,{"$f":"0.14975*(C13*D13*E13*F13)","v":0},0,0]
["Location de salle incluant le matériel audiovisuel",null,null,null,null,null,0,0.5,0,0,0]
["Honoraire professionnels du superviseur de stage indépendant",null,null,null,null,null,{"$f":"C15*D15*E15*F15","v":0},1,{"$f":"0.14975*(C15*D15*E15*F15)","v":0},{"$f":"G15*H15","v":0}]
["Dépenses liées aux examens d’équivalence nécessaires avant de commencer la formation",null,null,null,null,null,null,null,null,null,{"$f":"+(C17*D17*E17*F17)*H17","v":0}]
["Frais du test de classement",null,null,null,null,null,{"$f":"C17*D17*E17*F17","v":0},1,{"$f":"0.14975*(C17*D17*E17*F17)","v":0},{"$f":"G17*H17","v":0},0]
["Salaire des participants (test de classement) ",null,null,null,null,null,{"$f":"C18*D18*E18*F18","v":0},1,null,0]
["Dépenses liées aux cours d’appoint en formation de base nécessaire à la réussite de la formation du travailleur (numératie, littératie, francisation)",null,null,null,null,null,null,null,null,null,{"$f":"+(C20*D20*E20*F20)*H20","v":0}]
["Honoraires professionnels du formateur",null,null,null,null,null,{"$f":"C20*D20*E20*F20","v":0},1,{"$f":"0.14975*(C20*D20*E20*F20)","v":0},{"$f":"G20*H20","v":0},0]
["Salaire des participants",null,null,null,null,null,{"$f":"C21*D21*E21*F21","v":0},1,null,0]
["Adaptation",null,null,null,null,null,null,null,null,null,{"$f":"+(C23*D23*E23*F23)*H23","v":0}]
["Honoraires professionnels pour l'adaptation de contenu de formation ",null,null,null,null,null,{"$f":"C23*D23*E23*F23","v":0},1,{"$f":"0.14975*(C23*D23*E23*F23)","v":0},{"$f":"G23*H23","v":0},0]
["Salaire de base des experts",null,null,null,null,null,{"$f":"C24*D24*E24*F24","v":0},1,null,0]
["Diffusion",null,null,null,null,null,null,null,null,null,{"$f":"+(C26*D26*E26*F26)*H26","v":0}]
["Honoraires professionnels du formateur",null,null,null,null,null,{"$f":"C26*D26*E26*F26","v":0},1,{"$f":"0.14975*(C26*D26*E26*F26)","v":0},{"$f":"G26*H26","v":0},0]
["Salaire de la personne affectée au soutien à la réussite",null,null,null,null,null,{"$f":"C27*D27*E27*F27","v":0},1,null,0,{"$f":"IF(C28*D28*E28*F28<15000*E28,C28*D28*E28*F28,15000*E28)","v":0}]
["Salaire de base des participants (le nombre des participants doit être inscrit uniquement dans la case de la colonne E)",null,null,null,null,null,{"$f":"IF(C28*D28*E28*F28<25000*E28,C28*D28*E28*F28,25000*E28)","v":0},1,null,0,{"$f":"IF(C28*D28*E28*F28<25000*E28,C28*D28*E28*F28,25000*E28)","v":0}]
["Diffusion Incitatif pour la participation des femmes"]
["Salaire de base des participantes (le nombre des participantes doit être inscrit uniquement dans la case de la colonne E)",null,null,null,null,null,{"$f":"IF(C30*D30*E30*F30<30000*E30,C30*D30*E30*F30,30000*E30)","v":0},1,null,0,{"$f":"IF(C30*D30*E30*F30<30000*E30,C30*D30*E30*F30,30000*E30)","v":0}]
["Honoraire profesionnel de la mentore",null,null,null,null,null,{"$f":"C31*D31*E31*F31","v":0},1,{"$f":"0.14975*(C31*D31*E31*F31)","v":0},0,{"$f":"C31*D31*E31*F31","v":0}]
["Honoraires professionnels du formateur pour la formation favorisant l'intégration des femmes en TI",null,null,null,null,null,{"$f":"C32*D32*E32*F32","v":0},1,{"$f":"0.14975*(C32*D32*E32*F32)","v":0},0,{"$f":"C32*D32*E32*F32","v":0}]
["Salaire des participants pour la formation favorisant l'intégration des femmes",null,null,null,null,null,{"$f":"C33*D33*E33*F33","v":0},1,null,0,{"$f":"C33*D33*E33*F33","v":0}]
["Déplacement"]
["Déplacement des experts",null,null,null,null,null,{"$f":"C35*D35*E35*F35","v":0},1,null,{"$f":"G35*H35","v":0},{"$f":"+(C35*D35*E35*F35)*H35","v":0}]
["Déplacement du formateur",null,null,null,null,null,{"$f":"C36*D36*E36*F36","v":0},1,null,0,0]
["Déplacement des participants ",null,null,null,null,null,0,1,null,0,0]
["Déplacement du chargé de projets",null,null,null,null,null,0,1,null,0,0]
["Autres frais de déplacement (à préciser)",null,null,null,null,null,0,1,{"$f":"0.14975*(C39*D39*E39*F39)","v":0},0,0]
["Autres frais de déplacement (à préciser)",null,null,null,null,null,0,1,{"$f":"0.14975*(C40*D40*E40*F40)","v":0},0,0]
["Hébergement"]
["Hébergement des experts",null,null,null,null,null,0,1,{"$f":"0.14975*(C42*D42*E42*F42)","v":0},{"$f":"G42*H42","v":0},{"$f":"+(C42*D42*E42*F42)*H42","v":0}]
["Hébergement du formateur",null,null,null,null,null,0,1,{"$f":"0.14975*(C43*D43*E43*F43)","v":0},0,0]
["Hébergement des participants ",null,null,null,null,null,0,1,{"$f":"0.14975*(C44*D44*E44*F44)","v":0},0,0]
["Hébergement du chargé de projets",null,null,null,null,null,0,1,{"$f":"0.14975*(C45*D45*E45*F45)","v":0},0,0]
["Frais de repas"]
["Frais de repas des experts",null,null,null,null,null,{"$f":"C47*D47*E47*F47","v":0},1,{"$f":"0.14975*(C47*D47*E47*F47)","v":0},{"$f":"G47*H47","v":0},{"$f":"+(C47*D47*E47*F47)*H47","v":0}]
["Frais de repas du formateur",null,null,null,null,null,0,1,{"$f":"0.14975*(C48*D48*E48*F48)","v":0},0,0]
["Frais de repas des participants",null,null,null,null,null,0,1,{"$f":"0.14975*(C49*D49*E49*F49)","v":0},0,0]
["Frais de repas du chargé de projets",null,null,null,null,null,0,1,{"$f":"0.14975*(C50*D50*E50*F50)","v":0},0,0]
["Matériel didactique"]
["Matériel didactique",null,null,null,null,null,0,1,{"$f":"0.14975*(C52*D52*E52*F52)","v":0},{"$f":"G52*H52","v":0},{"$f":"+(C52*D52*E52*F52)*H52","v":0}]
["Révision linguistique",null,null,null,null,null,0,1,0,0,0]
["Graphisme",null,null,null,null,null,0,1,0,0,0]
["Frais d'infographie",null,null,null,null,null,0,1,0,0,0]
["Frais d'impression",null,null,null,null,null,0,1,0,0,0]
["Autres dépenses liées à la réalisation du projet "]
["Location de salles et de matériels audiovisuels",null,null,null,null,null,0,1,{"$f":"0.14975*(C58*D58*E58*F58)","v":0},{"$f":"G58*H58","v":0},{"$f":"+(C58*D58*E58*F58)*H58","v":0}]
["Location d'équipements",null,null,null,null,null,0,1,0,0,0]
["Salaire de la ressource pour l’intégration et en maintien en emploi (lorsque le salaire ne fait pas l’objet d’une aide gouvernementale)",null,null,null,null,null,{"$f":"C60*D60*E60*F60","v":0},1,null,{"$f":"G60*H60","v":0},{"$f":"+(C60*D60*E60*F60)*H60","v":0}]
["Honoraires professionnels d'un interprète pour la formation de personnes malentendantes",null,null,null,null,null,0,1,0,0,0]
["Honoraires professionnels d’un accompagnateur pour la formation de personnes malentendantes",null,null,null,null,null,0,1,0,0,0]
["Les frais encourus pour l’adaptation du matériel\npédagogique selon la nature du handicap",null,null,null,null,null,0,1,0,0,0]
["Dépenses liées à l'administration du projet par le promoteur"]
["Salaire de base du chargé de projets",null,null,null,null,null,{"$f":"C65*D65*E65*F65","v":0},1,null,{"$f":"G65*H65","v":0},{"$f":"+(C65*D65*E65*F65)*H65","v":0}]
["Promotion",null,null,null,null,null,{"$f":"C66*D66*E66*F66","v":0},1,{"$f":"0.14975*(C66*D66*E66*F66)","v":0},0,0]
["Contribution financière du Ministère de l'Éducation et de l'Enseignement supérieur"]
["Remboursement (50 % des taxes admissibles)",null,null,null,null,null,null,null,null,{"$f":"0.5*SUM(I5:I66)","v":0},{"$f":"0.5*SUM(I5:I66)","v":0}]
["Total partiel",null,null,null,null,null,null,null,null,{"$f":"SUM(J5:J68)","v":0},{"$f":"SUM(K5:K68)","v":0}]
["Frais d'administration (maximum 10 % du montant versé excluant le remboursement des salaires et incluant la contribution du ministère de l'Éducation et de l'Enseignement supérieur)",null,null,null,null,null,null,null,null,{"$f":"(J69+G67-J28-J30)*0.1","v":0},{"$f":"(K69+G67-K27)*0.1","v":0}]
["Total",null,null,null,null,null,null,null,null,{"$f":"J69+J70","v":0},{"$f":"K69+K70","v":0}]
[]
["Document préparé par la Direction du soutien opérationnel au développement de la main-d'œuvre en soutien aux promoteurs qui établissent le montant de la subvention.",null,null,null,null,null,null,"Date de mise à jour","2024-05-27"]

{"sheet":"Instructions","index":1,"n_rows":34,"n_cols":10,"rows_kept":34,"cut":false,"hidden":false,"merged":[[33,0,33,4],[33,7,33,8],[18,0,18,10],[8,0,8,10],[7,0,7,10],[10,0,10,10],[12,0,12,10],[13,0,13,10],[14,0,14,10],[9,0,9,10],[22,0,22,10],[23,0,23,10],[19,0,19,10],[20,0,20,10],[21,0,21,10],[0,0,0,10],[31,0,31,10],[25,0,25,10],[28,0,28,10],[29,0,29,10],[30,0,30,10],[26,0,26,10],[27,0,27,10],[16,0,16,10],[15,0,15,10],[17,0,17,10],[2,0,2,10],[4,0,4,10],[5,0,5,10],[6,0,6,10],[24,0,24,10]]}
["Instructions relatives au budget du projet"]
[]
["1. Barèmes du programme "]
[]
["Honoraires professionnels : Selon la complexité des travaux à accomplir, le remboursement des dépenses pourrait atteindre 150 $ l’heure. De manière, exceptionnelle, il peut atteindre 150 $/h."]
["Salaire de base des participants (formation de superviseur de stage) : jusqu’à un maximum de 25 $ l’heure par participant après application du taux de remboursement."]
["Salaire de base des participants (lors du test de classement) : jusqu’à un maximum de 25 $ l’heure par participant."]
["Salaire de base des participants (lors des formations d’appoint en formation de base — numératie, littératie, francisation) : jusqu’à un maximum de 25 $ l’heure par participant."]
["Salaire de base des participants (formation régulière) : Le salaire horaire est remboursé jusqu’à un maximum de 30 $ l’heure par participant jusqu’à un maximum de 25 000 $ par participant et de 30 000 $ par participante."]
[]
["3. Instructions concernant les colonnes"]
[]
["Nature de la dépense"]
["Les dépenses admissibles sont présentées par catégorie : Élaboration ou adaptation, Diffusion, Déplacement, Hébergement, Matériel didactique, Autres dépenses liées à la réalisation du projet et Dépenses liées à l’administration du projet par le promoteur. Il est important de ne pas changer l’appellation des postes budgétaires."]
["Veuillez remplir seulement les lignes qui concernent les postes budgétaires visés par votre demande de subvention. "]
[]
["Description de la dépense"]
["Pour chaque catégorie de dépenses (taux horaire des formateurs et des participants, coût par participant pour le matériel didactique, coût par kilomètre pour les frais de déplacement, coût par jour pour les frais d’hébergement et la location de salle, etc.), inscrire le détail des calculs en utilisant les unités de mesure appropriées. Voici des exemples :"]
[]
["Honoraires professionnels : 90 $/h x 16 h x 2 groupes"]
["Salaire de base des participants : 13,10 $/h x 16 h x 12 participants"]
["Déplacement du formateur : 0,620 $/km x 600 km x 2 déplacements"]
[]
["Coût unitaire"]
["Le coût unitaire doit être inscrit en dollars ($). Il s’agit du premier facteur de la multiplication présentée dans la colonne Description de la dépense (voir les exemples ci-dessus)."]
[]
["Unité"]
["Inscrire les autres facteurs de la multiplication. Dans les cases laissées vides, inscrire le chiffre 1."]
[]
["Taxes (100 %)"]
["Les taxes sont calculées automatiquement pour les dépenses taxables. La portion remboursable des taxes, qui est de 50 %, est également calculée automatiquement. Elle se trouve à la ligne « Remboursement (50 % des taxes admissibles) »."]
[]
[]
["Document préparé par la Direction du soutien opérationnel au développement de la main-d’œuvre en soutien aux promoteurs qui établissent le montant de la subvention.",null,null,null,null,null,null,"Date de mise à jour",null,"2024-05-27"]